fUST/lending_fUST_20250301
["ID","MTS","AMOUNT","RATE_DAILY","PERIOD"]
[354921472,1740817862878,-500.0,0.00033698,2]
[354921473,1740817862887,-500.0,0.00033698,2]
[354921474,1740817862898,-631.6,0.00033698,2]
[354921475,1740817862908,-537.13,0.00033698,2]
[354921476,1740817862918,-500.0,0.00033698,2]
[354921477,1740817862929,-500.0,0.00033698,2]
[354921478,1740817862942,-1623.715971,0.00033698,14]
[354921479,1740817862952,-500.0,0.00033698,120]
[354921480,1740817862962,-500.0,0.00033698,2]
[354921481,1740817862974,-1623.715971,0.00033698,14]
[354921482,1740817862984,-1174.68,0.00033698,2]
[354921483,1740817862994,-151.0,0.00033698,14]
[354921484,1740817863004,-790.47,0.00033698,2]
[354921485,1740817863015,-523.57,0.00033698,2]
[354921486,1740817863027,-500.0,0.00033698,2]
[354921487,1740817863039,-500.0,0.00033698,2]
[354921488,1740817863049,-500.0,0.00033698,2]
[354921489,1740817863060,-500.0,0.00033698,2]
[354921490,1740817863071,-500.0,0.00033698,2]
[354921491,1740817863081,-1969.755911,0.00033698,14]
[354921492,1740817863091,-1969.755911,0.00033698,14]
[354921493,1740817863102,-151.0,0.00033698,14]
[354921494,1740817863112,-500.0,0.00033698,2]
[354921495,1740817863123,-500.0,0.00033698,2]
[354921496,1740817863133,-1456.74,0.00033698,2]
[354921497,1740817863143,-500.0,0.00033698,2]
[354921498,1740817863153,-500.0,0.00033698,2]
[354921499,1740817863163,-462.571216,0.00033698,14]
[354921500,1740817863174,-500.0,0.00033698,2]
[354921501,1740817863184,-500.0,0.00033698,2]
[354921502,1740817863195,-462.571216,0.00033698,14]
[354921503,1740817863205,-1058.89,0.00033698,2]
[354921504,1740817863214,-500.0,0.00033698,2]
[354921505,1740817863224,-739.6,0.00033698,2]
[354921506,1740817863234,-739.45,0.00033698,2]
[354921507,1740817863244,-660.48,0.00033698,2]
[354921508,1740817863253,-500.0,0.00033698,2]
[354921509,1740817863263,-291.193328,0.00033698,14]
[354921510,1740817863273,-500.0,0.00033698,2]
[354921511,1740817863283,-500.0,0.00033698,2]
[354921512,1740817863293,-291.193328,0.00033698,14]
[354921513,1740817863306,-500.0,0.00033698,2]
[354921514,1740817863317,-500.0,0.00033698,2]
[354921515,1740817863327,-2207.39,0.00033698,2]
[354921516,1740817863338,-1862.06,0.00033698,2]
[354921517,1740817863348,-500.0,0.00033698,2]
[354921518,1740817863357,-500.0,0.00033698,2]
[354921519,1740817863367,-500.0,0.00033698,2]
[354921520,1740817863377,-500.0,0.00033698,2]
[354921521,1740817863387,-8668.19,0.00033698,2]
[354921522,1740817863397,-500.0,0.00033698,2]
[354921523,1740817863407,-500.0,0.00033698,2]
[354921524,1740817863417,-1358.04,0.00033698,2]
[354921525,1740817863430,-833.84,0.00033698,2]
[354921526,1740817863440,-1751.3,0.00033698,2]
[354921527,1740817863450,-500.0,0.00033698,2]
[354921528,1740817863461,-15925.0,0.00033698,2]
[354921529,1740817863472,-519.48016072,0.00033698,2]
[354921530,1740817863482,-500.0,0.00033698,2]
[354921531,1740817863493,-1797.34,0.00033698,2]
[354921532,1740817863506,-12771.61,0.00033698,2]
[354921533,1740817863515,-744.442474,0.00033698,14]
[354921534,1740817863526,-231.467165,0.00033698,14]
[354921535,1740817863537,-500.0,0.00033698,2]
[354921536,1740817863547,-611.30682174,0.00033698,2]
[354921537,1740817863557,-500.0,0.00033698,2]
[354921538,1740817863567,-744.442474,0.00033698,14]
[354921539,1740817863578,-240.65189253,0.00033698,2]
[354921540,1740817863588,-1755.88,0.00033698,2]
[354921541,1740817863600,-231.467165,0.00033698,14]
[354921542,1740817863610,-671.16,0.00033698,2]
[354921543,1740817863622,-500.0,0.00033698,2]
[354921544,1740817863632,-1262.21,0.00033698,2]
[354921545,1740817863866,-500.0,0.00033698,2]
[354921546,1740817863887,-500.0,0.00033698,2]
[354921547,1740817863897,-500.0,0.00033698,2]
[354921548,1740817863909,-2981.03,0.00033698,2]
[354921549,1740817863919,-2001.64,0.00033698,2]
[354921550,1740817863931,-1602.3,0.00033698,2]
[354921551,1740817863943,-2113.48,0.00033698,2]
[354921552,1740817863955,-930.6,0.00033698,2]
[354921553,1740817863965,-600.93,0.00033698,2]
[354921554,1740817863975,-500.0,0.00033698,2]
[354921555,1740817863986,-1051.04,0.00033698,2]
[354921556,1740817863996,-500.0,0.00033698,2]
[354921557,1740817864006,-500.0,0.00033698,2]
[354921558,1740817864020,-500.0,0.00033698,2]
[354921559,1740817864032,-500.0,0.00033698,2]
[354921560,1740817864042,-500.0,0.00033698,2]
[354921561,1740817864053,-2402.507878,0.00033698,14]
[354921562,1740817864062,-1404.477227,0.00033698,14]
[354921563,1740817864072,-202836.62,0.00033698,2]
[354921564,1740817864082,-1814.82,0.00033698,2]
[354921565,1740817864092,-1404.477227,0.00033698,14]
[354921566,1740817864102,-500.0,0.00033698,2]
[354921567,1740817864112,-718.7,0.00033698,2]
[354921568,1740817864121,-3266.74,0.00033698,2]
[354921569,1740817864130,-1465.12,0.00033698,2]
[354921570,1740817864140,-211.055466,0.00033698,14]
[354921571,1740817864150,-2402.48,0.00033698,2]
[354921572,1740817864160,-500.0,0.00033698,2]
[354921573,1740817864170,-211.055466,0.00033698,14]
[354921574,1740817864180,-588.26,0.00033698,2]
[354921575,1740817864190,-500.0,0.00033698,2]
[354921576,1740817864200,-500.0,0.00033698,2]
[354921577,1740817864210,-1991.31,0.00033698,2]
[354921578,1740817864219,-500.0,0.00033698,2]
[354921579,1740817864229,-4102.92,0.00033698,2]
[354921580,1740817864238,-1225.17,0.00033698,2]
[354921581,1740817864248,-1594.25,0.00033698,2]
[354921582,1740817864257,-514.0,0.00033698,2]
[354921583,1740817864267,-695.98,0.00033698,2]
[354921584,1740817864276,-355.31543668,0.00033698,2]
[354921585,1740817864285,-686.87,0.00033698,2]
[354921586,1740817864295,-500.0,0.00033698,2]
[354921587,1740817864305,-500.0,0.00033698,2]
[354921588,1740817864316,-2077.92,0.00033698,2]
[354921589,1740817864326,-500.0,0.00033698,2]
[354921590,1740817864336,-590.158248,0.00033698,14]
[354921591,1740817864345,-984.35,0.00033698,2]
[354921592,1740817864355,-500.0,0.00033698,2]
[354921593,1740817864364,-525.19719281,0.00033698,2]
[354921594,1740817864374,-590.158248,0.00033698,14]
[354921595,1740817864383,-7070.88,0.00033698,2]
[354921596,1740817864393,-1244.17,0.00033698,2]
[354921597,1740817864403,-804.55,0.00033698,2]
[354921598,1740817864413,-2216.42,0.00033698,2]
[354921599,1740817864424,-1268.75,0.00033698,2]
[354921600,1740817864433,-500.0,0.00033698,2]
[354921601,1740817864443,-500.0,0.00033698,2]
[354921602,1740817864452,-500.0,0.00033698,2]
[354921603,1740817864462,-500.0,0.00033698,2]
[354921604,1740817864472,-500.0,0.00033698,2]
[354921605,1740817864485,-531.97,0.00033698,2]
[354921606,1740817864497,-604.24,0.00033698,2]
[354921607,1740817864511,-553.58,0.00033698,2]
[354921608,1740817864521,-234.515658,0.00033698,14]
[354921609,1740817864531,-1466.88,0.00033698,2]
[354921610,1740817864541,-2023.28,0.00033698,2]
[354921611,1740817864550,-1302.88,0.00033698,2]
[354921612,1740817864561,-583.39,0.00033698,2]
[354921613,1740817864572,-234.515658,0.00033698,14]
[354921614,1740817864582,-12171.81,0.00033698,2]
[354921615,1740817864592,-785.36,0.00033698,2]
[354921616,1740817864602,-151.0,0.00033698,14]
[354921617,1740817864612,-948.37,0.00033698,2]
[354921618,1740817864622,-500.0,0.00033698,2]
[354921619,1740817864632,-151.0,0.00033698,14]
[354921620,1740817864643,-500.0,0.00033698,2]
[354921621,1740817864656,-905.46,0.00033698,2]
[354921622,1740817864666,-556.88,0.00033698,2]
[354921623,1740817864677,-151.0,0.00033698,14]
[354921624,1740817864687,-151.0,0.00033698,14]
[354921625,1740817864697,-548.05,0.00033698,2]
[354921626,1740817864707,-500.0,0.00033698,2]
[354921627,1740817864717,-500.0,0.00033698,2]
[354921628,1740817864726,-500.0,0.00033698,2]
[354921629,1740817864737,-634.71,0.00033698,2]
[354921630,1740817864754,-1396.74,0.00033698,2]
[354921631,1740817864764,-500.0,0.00033698,2]
[354921632,1740817864774,-3193.13,0.00033698,2]
[354921633,1740817864783,-1689.31,0.00033698,2]
[354921634,1740817864792,-500.0,0.00033698,2]
[354921635,1740817864802,-746.67,0.00033698,2]
[354921636,1740817864811,-500.0,0.00033698,2]
[354921637,1740817864820,-1546.75,0.00033698,2]
[354921638,1740817864830,-500.0,0.00033698,2]
[354921639,1740817864840,-1264.27,0.00033698,2]
[354921640,1740817864849,-434.09716827,0.00033698,2]
[354921641,1740817864859,-500.0,0.00033698,2]
[354921642,1740817864871,-1095.66,0.00033698,2]
[354921643,1740817864881,-500.0,0.00033698,2]
[354921644,1740817864891,-3370.93,0.00033698,2]
[354921645,1740817864900,-1301.98,0.00033698,2]
[354921646,1740817864910,-500.0,0.00033698,2]
[354921647,1740817864920,-1705.641074,0.00033698,14]
[354921648,1740817864930,-1705.641074,0.00033698,14]
[354921649,1740817864942,-951.34,0.00033698,2]
[354921650,1740817864952,-1204.25,0.00033698,5]
[354921651,1740817864961,-1740.8,0.00033698,2]
[354921652,1740817864973,-1705.641074,0.00033698,14]
[354921653,1740817864986,-500.0,0.00033698,2]
[354921654,1740817864995,-1705.641074,0.00033698,14]
[354921655,1740817865006,-500.0,0.00033698,2]
[354921656,1740817865018,-500.0,0.00033698,2]
[354921657,1740817865028,-767.54,0.00033698,2]
[354921658,1740817865038,-1443.22,0.00033698,2]
[354921659,1740817865048,-500.0,0.00033698,2]
[354921660,1740817865058,-954.47,0.00033698,2]
[354921661,1740817865069,-6662.49,0.00033698,2]
[354921662,1740817865079,-40921.83,0.00033698,2]
[354921663,1740817865089,-547.0,0.00033698,2]
[354921664,1740817865099,-1480.22,0.00033698,2]
[354921665,1740817865109,-7312.56,0.00033698,2]
[354921666,1740817865119,-500.0,0.00033698,2]
[354921667,1740817865130,-500.0,0.00033698,2]
[354921668,1740817865140,-2133.08,0.00033698,2]
[354921669,1740817865149,-500.0,0.00033698,2]
[354921670,1740817865159,-2413.06,0.00033698,2]
[354921671,1740817865169,-500.0,0.00033698,2]
[354921672,1740817865180,-500.0,0.00033698,2]
[354921673,1740817865190,-1358.58,0.00033698,2]
[354921674,1740817865200,-745.33,0.00033698,2]
[354921675,1740817865209,-1069.67,0.00033698,2]
[354921676,1740817865219,-500.0,0.00033698,2]
[354921677,1740817865229,-500.0,0.00033698,2]
[354921678,1740817865237,-500.0,0.00033698,2]
[354921679,1740817865248,-681.05,0.00033698,2]
[354921680,1740817865257,-318.191088,0.00033698,14]
[354921681,1740817865267,-1931.81,0.00033698,2]
[354921682,1740817865276,-318.191088,0.00033698,14]
[354921683,1740817865286,-596.69452969,0.00033698,2]
[354921684,1740817865295,-500.0,0.00033698,2]
[354921685,1740817865305,-1220.43,0.00033698,2]
[354921686,1740817865314,-4099.73,0.00033698,2]
[354921687,1740817865325,-318.191088,0.00033698,14]
[354921688,1740817865335,-318.191088,0.00033698,14]
[354921689,1740817865344,-518.77,0.00033698,120]
[354921690,1740817865354,-830.44,0.00033698,2]
[354921691,1740817865363,-500.0,0.00033698,2]
[354921692,1740817865372,-2786.98,0.00033698,2]
[354921693,1740817865382,-500.0,0.00033698,2]
[354921694,1740817865391,-500.0,0.00033698,2]
[354921695,1740817865400,-500.0,0.00033698,2]
[354921696,1740817865410,-500.0,0.00033698,2]
[354921697,1740817865419,-1528.64,0.00033698,2]
[354921698,1740817865429,-500.0,0.00033698,2]
[354921699,1740817865438,-500.0,0.00033698,2]
[354921700,1740817865448,-500.0,0.00033698,2]
[354921701,1740817865457,-500.0,0.00033698,2]
[354921702,1740817865467,-1864.31,0.00033698,2]
[354921703,1740817865476,-671.41,0.00033698,2]
[354921704,1740817865486,-500.0,0.00033698,2]
[354921705,1740817865496,-500.0,0.00033698,2]
[354921706,1740817865505,-8712.91,0.00033698,2]
[354921707,1740817865515,-500.0,0.00033698,2]
[354921708,1740817865526,-606.47,0.00033698,2]
[354921709,1740817865536,-500.0,0.00033698,2]
[354921710,1740817865545,-570.56240796,0.00033698,2]
[354921711,1740817865555,-500.0,0.00033698,2]
[354921712,1740817865565,-250.0,0.000337,30]
[354921713,1740817865574,-500.0,0.000338,2]
[354921714,1740817865584,-317.87519071,0.00033934,6]
[354921715,1740817865593,-151.0,0.00033972,14]
[354921716,1740817865602,-151.0,0.00033972,14]
[354921717,1740817865613,-181.434084,0.00033972,14]
[354921718,1740817865624,-181.434084,0.00033972,14]
[354921719,1740817865633,-151.0,0.00033972,14]
[354921720,1740817865643,-151.0,0.00033972,14]
[354921721,1740817865653,-151.0,0.00033972,14]
[354921722,1740817865662,-151.0,0.00033972,14]
[354921723,1740817865671,-151.77749,0.00033972,14]
[354921724,1740817865682,-151.77749,0.00033972,14]
[354921725,1740817865691,-500.0,0.00033972,2]
[354921726,1740817865700,-151.0,0.00033972,14]
[354921727,1740817865709,-1644.15,0.00033972,2]
[354921728,1740817865719,-559.88,0.00033972,2]
[354921729,1740817865729,-203.730655,0.00033972,14]
[354921730,1740817865739,-500.0,0.00033972,2]
[354921731,1740817865749,-513.41,0.00033972,2]
[354921732,1740817865759,-1208.73,0.00033972,2]
[354921733,1740817865769,-1229.409011,0.00033972,14]
[354921734,1740817865779,-1587.26,0.00033972,2]
[354921735,1740817865788,-1671.69,0.00033972,2]
[354921736,1740817865798,-500.0,0.00033972,2]
[354921737,1740817865807,-500.0,0.00033972,2]
[354921738,1740817865816,-500.0,0.00033972,2]
[354921739,1740817865826,-500.0,0.00033972,2]
[354921740,1740817865835,-648.21,0.00033972,2]
[354921741,1740817865844,-550.25729886,0.00033972,2]
[354921742,1740817865853,-500.0,0.00033972,2]
[354921743,1740817865863,-500.0,0.00033972,2]
[354921744,1740817865872,-500.0,0.00033972,2]
[354921745,1740817865881,-629.12,0.00033972,2]
[354921746,1740817865891,-151.0,0.00033972,14]
[354921747,1740817865900,-500.0,0.00033972,2]
[354921748,1740817865910,-614.19,0.00033972,2]
[354921749,1740817865919,-500.0,0.00033972,2]
[354921750,1740817865930,-500.0,0.00033972,2]
[354921751,1740817865941,-711.94,0.00033972,2]
[354921752,1740817865951,-151.0,0.00033972,14]
[354921753,1740817865960,-500.0,0.00033972,2]
[354921754,1740817865969,-205.537317,0.00033972,14]
[354921755,1740817865979,-500.0,0.00033972,2]
[354921756,1740817865988,-500.0,0.00033972,2]
[354921757,1740817865998,-1477.94,0.00033972,2]
[354921758,1740817866008,-500.0,0.00033972,2]
[354921759,1740817866018,-888.11,0.00033972,2]
[354921760,1740817866029,-500.0,0.00033972,2]
[354921761,1740817866038,-500.0,0.00033972,2]
[354921762,1740817866047,-151.0,0.00033972,14]
[354921763,1740817866057,-500.0,0.00033972,2]
[354921764,1740817866066,-719.65,0.00033972,2]
[354921765,1740817866077,-500.0,0.00033972,2]
[354921766,1740817866087,-1024.55,0.00033972,2]
[354921767,1740817866096,-438.615875,0.00033972,14]
[354921768,1740817866107,-500.0,0.00033972,2]
[354921769,1740817866117,-503.6,0.00033972,2]
[354921770,1740817866127,-438.615875,0.00033972,14]
[354921771,1740817866137,-527.87,0.00033972,2]
[354921772,1740817866147,-500.0,0.00033972,2]
[354921773,1740817866156,-555.66,0.00033972,2]
[354921774,1740817866166,-500.0,0.00033972,2]
[354921775,1740817866177,-573.23,0.00033972,2]
[354921776,1740817866187,-767.47,0.00033972,2]
[354921777,1740817866197,-500.0,0.00033972,2]
[354921778,1740817866207,-500.0,0.00033972,2]
[354921779,1740817866217,-200.0,0.00033972,2]
[354921780,1740817866228,-518.92312139,0.00033972,2]
[354921781,1740817866239,-514.28,0.00033972,2]
[354921782,1740817866315,-610.5,0.00033972,2]
[354921783,1740817866326,-151.0,0.00033972,14]
[354921784,1740817866336,-519.24,0.00033972,2]
[354921785,1740817866346,-500.0,0.00033972,2]
[354921786,1740817866356,-883.93,0.00033972,2]
[354921787,1740817866366,-718.37,0.00033972,2]
[354921788,1740817866375,-759.65,0.00033972,2]
[354921789,1740817866384,-500.0,0.00033972,2]
[354921790,1740817866393,-829.62,0.00033972,2]
[354921791,1740817866402,-500.0,0.00033972,2]
[354921792,1740817866411,-500.0,0.00033972,2]
[354921793,1740817866421,-630.478341,0.00033972,14]
[354921794,1740817866431,-500.0,0.00033972,2]
[354921795,1740817866441,-730.09,0.00033972,2]
[354921796,1740817866450,-630.478341,0.00033972,14]
[354921797,1740817866459,-500.0,0.00033972,2]
[354921798,1740817866469,-632.37,0.00033972,2]
[354921799,1740817866478,-1347.85,0.00033972,2]
[354921800,1740817866487,-344.610117,0.00033972,14]
[354921801,1740817866496,-344.610117,0.00033972,14]
[354921802,1740817866505,-500.0,0.00033972,2]
[354921803,1740817866514,-151.0,0.00033972,14]
[354921804,1740817866523,-500.0,0.00033972,2]
[354921805,1740817866533,-289.251652,0.00033972,14]
[354921806,1740817866542,-500.0,0.00033972,2]
[354921807,1740817866552,-241.310896,0.00033972,14]
[354921808,1740817866561,-241.310896,0.00033972,14]
[354921809,1740817866570,-801.46,0.00033972,2]
[354921810,1740817866579,-764.75,0.00033972,2]
[354921811,1740817866588,-151.0,0.00033972,14]
[354921812,1740817866598,-500.0,0.00033972,2]
[354921813,1740817866607,-500.62079031,0.00033972,2]
[354921814,1740817866616,-500.0,0.00033972,2]
[354921815,1740817866625,-500.0,0.00033972,2]
[354921816,1740817866635,-500.0,0.00033972,2]
[354921817,1740817866644,-500.0,0.00033972,2]
[354921818,1740817866653,-500.0,0.00033972,2]
[354921819,1740817866663,-605.9,0.00033972,2]
[354921820,1740817866672,-500.0,0.00033972,2]
[354921821,1740817866682,-507.58,0.00033972,2]
[354921822,1740817866691,-614.76,0.00033972,2]
[354921823,1740817866700,-1900.98,0.00033972,2]
[354921824,1740817866709,-500.0,0.00033972,2]
[354921825,1740817866718,-500.0,0.00033972,2]
[354921826,1740817866727,-151.0,0.00033972,14]
[354921827,1740817866737,-500.0,0.00033972,2]
[354921828,1740817866746,-500.0,0.00033972,2]
[354921829,1740817866756,-500.0,0.00033972,2]
[354921830,1740817866766,-151.0,0.00033972,14]
[354921831,1740817866775,-1227.37,0.00033972,2]
[354921832,1740817866784,-500.0,0.00033972,2]
[354921833,1740817866793,-357.809386,0.00033972,14]
[354921834,1740817866803,-500.0,0.00033972,2]
[354921835,1740817866812,-151.0,0.00033972,14]
[354921836,1740817866822,-357.809386,0.00033972,14]
[354921837,1740817866831,-500.0,0.00033972,2]
[354921838,1740817866840,-2343.98,0.00033972,2]
[354921839,1740817866850,-500.0,0.00033972,2]
[354921840,1740817866859,-500.0,0.00033972,2]
[354921841,1740817866869,-151.0,0.00033972,14]
[354921842,1740817866878,-500.0,0.00033972,2]
[354921843,1740817866888,-1080.1,0.00033972,2]
[354921844,1740817866898,-887.27,0.00033972,2]
[354921845,1740817866907,-5673.64,0.00033972,2]
[354921846,1740817866918,-500.0,0.00033972,2]
[354921847,1740817866928,-919.62,0.00033972,2]
[354921848,1740817866940,-569.41,0.00033972,2]
[354921849,1740817866950,-1452.05,0.00033972,2]
[354921850,1740817866960,-500.0,0.00033972,2]
[354921851,1740817866970,-500.0,0.00033972,2]
[354921852,1740817866981,-1359.61,0.00033972,2]
[354921853,1740817866992,-500.0,0.00033972,2]
[354921854,1740817867002,-535.66,0.00033972,2]
[354921855,1740817867012,-500.0,0.00033972,2]
[354921856,1740817867030,-738.94,0.00033972,2]
[354921857,1740817867040,-1818.73,0.00033972,2]
[354921858,1740817867049,-500.0,0.00033972,2]
[354921859,1740817867059,-514.3986795,0.00033972,2]
[354921860,1740817867069,-514.71493381,0.00033972,2]
[354921861,1740817867079,-887.06,0.00033972,2]
[354921862,1740817867088,-484.0087645,0.00033972,2]
[354921863,1740817867097,-500.0,0.00033972,2]
[354921864,1740817867106,-500.0,0.00033972,2]
[354921865,1740817867116,-246.88887894,0.00033972,2]
[354921866,1740817867125,-500.0,0.00033972,2]
[354921867,1740817867135,-500.0,0.00033972,2]
[354921868,1740817867144,-151.0,0.00033972,14]
[354921869,1740817867153,-151.0,0.00033972,14]
[354921870,1740817867163,-1355.15,0.00033972,2]
[354921871,1740817867173,-946.24,0.00033972,2]
[354921872,1740817867183,-500.0,0.00033972,2]
[354921873,1740817867192,-828.84,0.00033972,2]
[354921874,1740817867201,-500.0,0.00033972,2]
[354921875,1740817867211,-1363.84,0.00033972,2]
[354921876,1740817867221,-607.06,0.00033972,2]
[354921877,1740817867230,-665.85,0.00033972,2]
[354921878,1740817867240,-500.0,0.00033972,2]
[354921879,1740817867249,-246.445052,0.00033972,14]
[354921880,1740817867259,-246.445052,0.00033972,14]
[354921881,1740817867269,-500.0,0.00033972,2]
[354921882,1740817867278,-246.445052,0.00033972,14]
[354921883,1740817867288,-246.445052,0.00033972,14]
[354921884,1740817867297,-500.0,0.00033972,2]
[354921885,1740817867306,-500.0,0.00033972,2]
[354921886,1740817867316,-652.83,0.00033972,2]
[354921887,1740817867325,-500.0,0.00033972,2]
[354921888,1740817867335,-183.888502,0.00033972,14]
[354921889,1740817867344,-563.41,0.00033972,2]
[354921890,1740817867353,-292.121557,0.00033972,14]
[354921891,1740817867362,-292.121557,0.00033972,14]
[354921892,1740817867371,-183.888502,0.00033972,14]
[354921893,1740817867380,-292.121557,0.00033972,14]
[354921894,1740817867389,-500.0,0.00033972,2]
[354921895,1740817867398,-292.121557,0.00033972,14]
[354921896,1740817867407,-525.54,0.00033972,2]
[354921897,1740817867416,-500.0,0.00033972,2]
[354921898,1740817867425,-261.187467,0.00033972,14]
[354921899,1740817867434,-261.187467,0.00033972,14]
[354921900,1740817867444,-1357.83,0.00033972,2]
[354921901,1740817867454,-261.187467,0.00033972,14]
[354921902,1740817867464,-261.187467,0.00033972,14]
[354921903,1740817867473,-1766.46,0.00033972,2]
[354921904,1740817867483,-500.0,0.00033972,2]
[354921905,1740817867492,-512.00114862,0.00033972,2]
[354921906,1740817867501,-500.0,0.00033972,2]
[354921907,1740817867510,-500.0,0.00033972,2]
[354921908,1740817867519,-500.0,0.00033972,2]
[354921909,1740817867529,-500.0,0.00033972,2]
[354921910,1740817867539,-500.0,0.00033972,2]
[354921911,1740817867548,-500.0,0.00033972,2]
[354921912,1740817867558,-622.98621605,0.00033972,2]
[354921913,1740817867567,-500.0,0.00033972,2]
[354921914,1740817867578,-1055.04,0.00033972,2]
[354921915,1740817867587,-500.0,0.00033972,2]
[354921916,1740817867596,-362.89129365,0.00033972,2]
[354921917,1740817867606,-703.58,0.00033972,2]
[354921918,1740817867615,-542.45988065,0.00033972,2]
[354921919,1740817867625,-618.17,0.00033972,2]
[354921920,1740817867635,-500.0,0.00033972,2]
[354921921,1740817867644,-500.0,0.00033972,2]
[354921922,1740817867654,-659.88,0.00033972,2]
[354921923,1740817867663,-508.39,0.00033972,2]
[354921924,1740817867672,-597.85,0.00033972,2]
[354921925,1740817867682,-1639.573708,0.00033972,14]
[354921926,1740817867691,-500.0,0.00033972,2]
[354921927,1740817867700,-568.865844,0.00033972,14]
[354921928,1740817867709,-568.865844,0.00033972,14]
[354921929,1740817867718,-500.0,0.00033972,2]
[354921930,1740817867727,-568.865844,0.00033972,14]
[354921931,1740817867735,-568.865844,0.00033972,14]
[354921932,1740817867745,-500.0,0.00033972,2]
[354921933,1740817867754,-913.27,0.00033972,2]
[354921934,1740817867763,-739.13,0.00033972,2]
[354921935,1740817867772,-151.0,0.00033972,14]
[354921936,1740817867781,-500.0,0.00033972,2]
[354921937,1740817867790,-1115.87,0.00033972,2]
[354921938,1740817867799,-1112.35,0.00033972,2]
[354921939,1740817867809,-592.5,0.00033972,2]
[354921940,1740817867818,-500.0,0.00033972,2]
[354921941,1740817867827,-1027.75,0.00033972,2]
[354921942,1740817867837,-500.0,0.00033972,2]
[354921943,1740817867846,-500.0,0.00033972,2]
[354921944,1740817867855,-654.89,0.00033972,2]
[354921945,1740817867864,-500.0,0.00033972,2]
[354921946,1740817867874,-500.0,0.00033972,2]
[354921947,1740817867884,-631.6,0.00033972,2]
[354921948,1740817867893,-537.13,0.00033972,2]
[354921949,1740817867903,-500.0,0.00033972,2]
[354921950,1740817867912,-500.0,0.00033972,2]
[354921951,1740817867921,-1623.715971,0.00033972,14]
[354921952,1740817867931,-500.0,0.00033972,120]
[354921953,1740817867943,-296.06224926,0.00033972,2]
[354921954,1740817867952,-1623.715971,0.00033972,14]
[354921955,1740817867961,-1174.68,0.00033972,2]
[354921956,1740817867970,-151.0,0.00033972,14]
[354921957,1740817867980,-790.47,0.00033972,2]
[354921958,1740817867990,-523.57,0.00033972,2]
[354921959,1740817867999,-500.0,0.00033972,2]
[354921960,1740817868008,-500.0,0.00033972,2]
[354921961,1740817868019,-500.0,0.00033972,2]
[354921962,1740817868029,-500.0,0.00033972,2]
[354921963,1740817868039,-1969.755911,0.00033972,14]
[354921964,1740817868048,-1969.755911,0.00033972,14]
[354921965,1740817868058,-1969.755911,0.00033972,14]
[354921966,1740817868068,-151.0,0.00033972,14]
[354921967,1740817868077,-1969.755911,0.00033972,14]
[354921968,1740817868088,-500.0,0.00033972,2]
[354921969,1740817868097,-500.0,0.00033972,2]
[354921970,1740817868107,-1456.74,0.00033972,2]
[354921971,1740817868116,-500.0,0.00033972,2]